[Event "Liberia Championship 2023"]
[Site "Monrovia"]
[Date "2024.01.19"]
[Round "5.8"]
[White "Harold Evans"]
[Black "Foday W. Kondoh"]
[Result "0-1"]
[ECO "B21"]
[WhiteElo "1735"]
[BlackElo "1785"]
[Annotator "NA RC"]
[PlyCount "68"]
[EventDate "2024.01.16"]
[EventType "swiss"]
[EventCountry "LBR"]
[SourceTitle "playchess.com"]
[Source "ChessBase"]
[SourceQuality "1"]
[TimeControl "40/5400+30:1800+30"]

1. e4 {[%emt 0:07:31]} c5 {[%emt 0:00:09]} 2. d4 {[%emt 0:00:13]} cxd4 {[%emt 0:00:27]} 3. Qxd4 {[%emt 0:00:15]} Nc6 {[%emt 0:00:04]} 4. Qe3 {[%emt 0:00:06]} d6 {[%emt 0:00:34]} 5. Nc3 {[%emt 0:00:13]} g6 {[%emt 0:00:55]} 6. Bd2 {[%emt 0:00:11]} Bg7 {[%emt 0:00:04]} 7. O-O-O {[%emt 0:00:44]} Be6 {[%emt 0:01:34]} 8. Nd5 {[%emt 0:01:20]} Bd4 {[%emt 0:07:00]} 9. Qe1 {[%emt 0:00:22]} Nf6 {[%emt 0:06:13]} 10. Bc4 {[%emt 0:00:45]} Rc8 {[%emt 0:03:43]} 11. Bb3 {[%emt 0:00:35]} Bxd5 {[%emt 0:01:07]} 12. exd5 {[%emt 0:03:09]} Ne5 {[%emt 0:00:36]} 13. Ne2 {[%emt 0:01:06]} Nd3+ {[%emt 0:00:25]} 14. Kb1 {[%emt 0:02:09]} Nxe1 {[%emt 0:00:22]} 15. Bxe1 {[%emt 0:00:53]} Bb6 {[%emt 0:00:34]} 16. h4 {[%emt 0:00:21]} h5 {[%emt 0:02:37]} 17. f3 {[%emt 0:00:14]} Ba5 {[%emt 0:00:49]} 18. Bf2 {[%emt 0:00:15]} a6 {[%emt 0:00:38]} 19. Bd4 {[%emt 0:00:24]} b5 {[%emt 0:01:01]} 20. g4 {[%emt 0:00:09]} Bb6 {[%emt 0:00:55]} 21. Bc3 {[%emt 0:01:15]} O-O {[%emt 0:01:42]} 22. Bxf6 {[%emt 0:00:49]} exf6 {[%emt 0:00:19]} 23. gxh5 {[%emt 0:00:15]} Qe7 {[%emt 0:02:45]} 24. Ng3 {[%emt 0:02:45]} Qe5 {[%emt 0:03:02]} 25. Rh3 {[%emt 0:00:02]} a5 {[%emt 0:01:13]} 26. c3 {[%emt 0:01:29]} b4 {[%emt 0:02:30]} 27. Bc2 {[%emt 0:01:28]} bxc3 {[%emt 0:00:30]} 28. b3 {[%emt 0:00:36]} a4 {[%emt 0:00:18]} 29. hxg6 {[%emt 0:00:16]} axb3 {[%emt 0:00:55]} 30. gxf7+ {[%emt 0:00:48]} Rxf7 {[%emt 0:00:40]} 31. axb3 {[%emt 0:00:03]} Ra7 {[%emt 0:00:50]} 32. Bf5 {[%emt 0:01:35]} Rca8 {[%emt 0:00:28]} 33. Be6+ {[%emt 0:00:08]} Kh8 {[%emt 0:00:48]} 34. Nf5 {[%emt 0:00:02]} Qe2 {[%emt 0:02:49]} 0-1

[Event "Liberia Championship 2023"]
[Site "Monrovia"]
[Date "2024.01.19"]
[Round "5.9"]
[White "Martin Dunbar"]
[Black "Prince Jegbadai"]
[Result "1-0"]
[ECO "C42"]
[WhiteElo "1709"]
[BlackElo "1627"]
[Annotator "NA RC"]
[PlyCount "77"]
[EventDate "2024.01.16"]
[EventType "swiss"]
[EventCountry "LBR"]
[SourceTitle "playchess.com"]
[Source "ChessBase"]
[SourceQuality "1"]
[TimeControl "40/5400+30:1800+30"]

1. e4 {[%emt 0:22:23]} e5 {[%emt 0:00:14]} 2. Nf3 {[%emt 0:00:10]} d6 {[%emt 0:00:16]} 3. Bc4 {[%emt 0:00:15]} h6 {[%emt 0:00:25]} 4. h3 {[%emt 0:00:08]} Nf6 {[%emt 0:00:10]} 5. Nc3 {[%emt 0:00:30]} Be7 {[%emt 0:00:21]} 6. d3 {[%emt 0:00:16]} a6 {[%emt 0:00:10]} 7. a3 {[%emt 0:00:46]} Bd7 {[%emt 0:00:45]} 8. Bd2 {[%emt 0:00:27]} Nc6 {[%emt 0:00:12]} 9. Qe2 {[%emt 0:00:31]} Na5 {[%emt 0:00:27]} 10. Ba2 {[%emt 0:00:20]} c5 {[%emt 0:00:16]} 11. g4 {[%emt 1:10:14]} g5 {[%emt 1:32:44]} 12. Nd5 {[%emt 0:00:00]} Nxd5 {[%emt 0:00:00]} 13. Bxd5 {[%emt 0:01:00]} Nc6 {[%emt 0:01:00]} 14. c3 {[%emt 0:00:00]} Qc7 {[%emt 0:00:00]} 15. Be3 {[%emt 0:00:00]} Be6 {[%emt 0:00:00]} 16. Bxe6 {[%emt 0:01:30]} fxe6 {[%emt 0:01:30]} 17. h4 {[%emt 0:00:00]} Kd7 {[%emt 0:00:00]} 18. hxg5 {[%emt 0:01:00]} hxg5 {[%emt 0:01:00]} 19. O-O-O {[%emt 0:00:00]} Rag8 {[%emt 0:00:00]} 20. Rxh8 {[%emt 0:00:00]} Rxh8 {[%emt 0:00:00]} 21. Bxg5 {[%emt 0:00:00]} Qd8 {[%emt 0:00:00]} 22. Bxe7 {[%emt 0:00:00]} Qxe7 {[%emt 0:00:00]} 23. Nd2 {[%emt 0:02:30]} b5 {[%emt 0:02:30]} 24. f3 {[%emt 0:00:00]} Qg5 {[%emt 0:00:00]} 25. Rf1 {[%emt 0:01:00]} Qf4 {[%emt 0:01:00]} 26. Kb1 {[%emt 0:00:00]} Rh2 {[%emt 0:00:30]} 27. Rf2 {[%emt 0:01:00]} Rh1+ {[%emt 0:00:00]} 28. Ka2 {[%emt 0:00:00]} b4 {[%emt 0:00:00]} 29. Rg2 {[%emt 0:00:00]} Qg5 {[%emt 0:00:00]} 30. Rh2 {[%emt 0:01:30]} Rc1 {[%emt 0:02:00]} 31. Nb3 {[%emt 0:00:30]} Rg1 {[%emt 0:00:30]} 32. Qd2 {[%emt 0:00:30]} Qf4 {[%emt 0:00:30]} 33. Qe2 {[%emt 0:00:00]} Kc7 {[%emt 0:00:00]} 34. d4 {[%emt 0:00:00]} c4 {[%emt 0:00:00]} 35. Rh7+ {[%emt 0:01:30]} Kb6 {[%emt 0:01:30]} 36. Qxc4 {[%emt 0:00:30]} Qxf3 {[%emt 0:00:30]} 37. d5 {[%emt 0:00:00]} Na7 {[%emt 0:00:00]} 38. Qxb4+ {[%emt 0:01:00]} Nb5 {[%emt 0:01:00]} 39. Qa5# {[%emt 0:00:30]} 1-0

[Event "Liberia Championship 2023"]
[Site "Monrovia"]
[Date "2024.01.19"]
[Round "5.10"]
[White "Rudolph Edwards"]
[Black "Jacob, Jallah"]
[Result "0-1"]
[ECO "B15"]
[WhiteElo "1630"]
[BlackElo "1781"]
[Annotator "NA RC"]
[PlyCount "60"]
[EventDate "2024.01.16"]
[EventType "swiss"]
[EventCountry "LBR"]
[SourceTitle "playchess.com"]
[Source "ChessBase"]
[SourceQuality "1"]
[TimeControl "40/5400+30:1800+30"]

1. e4 {[%emt 0:02:28]} c6 {[%emt 0:00:26]} 2. Nc3 {[%emt 0:00:14]} d5 {[%emt 0:00:13]} 3. d4 {[%emt 0:00:13]} dxe4 {[%emt 0:01:04]} 4. Nxe4 {[%emt 0:00:44]} Nf6 {[%emt 0:00:02]} 5. Nxf6+ {[%emt 0:00:34]} exf6 {[%emt 0:00:09]} 6. Be2 {[%emt 0:00:29]} Bd6 {[%emt 0:00:10]} 7. Nf3 {[%emt 0:00:31]} Bf5 {[%emt 0:01:59]} 8. Nh4 {[%emt 0:02:21]} Nd7 {[%emt 0:06:46]} 9. O-O {[%emt 0:00:56]} Bg6 {[%emt 0:00:03]} 10. Re1 {[%emt 0:00:25]} O-O {[%emt 0:00:28]} 11. Bc4 {[%emt 0:00:15]} Re8 {[%emt 0:00:57]} 12. Be3 {[%emt 0:00:19]} a5 {[%emt 0:00:30]} 13. a4 {[%emt 0:00:18]} Nb6 {[%emt 0:00:54]} 14. Bb3 {[%emt 0:01:01]} Nd5 {[%emt 0:00:57]} 15. Nxg6 {[%emt 0:01:23]} hxg6 {[%emt 0:00:18]} 16. Qf3 {[%emt 0:01:36]} f5 {[%emt 0:04:11]} 17. Rad1 {[%emt 0:02:13]} Re4 {[%emt 0:01:59]} 18. c4 {[%emt 0:01:05]} Nf6 {[%emt 0:23:23]} 19. c5 {[%emt 1:22:55]} Be7 {[%emt 0:07:59]} 20. Bc2 {[%emt 0:00:00]} Rh4 {[%emt 0:02:46]} 21. Bg5 {[%emt 0:00:00]} Rg4 {[%emt 0:09:04]} 22. Bxf6 {[%emt 0:00:00]} Bxf6 {[%emt 0:02:24]} 23. d5 {[%emt 0:00:00]} cxd5 {[%emt 0:01:23]} 24. Rxd5 {[%emt 0:00:00]} Qc7 {[%emt 0:01:22]} 25. Red1 {[%emt 0:00:00]} Re8 {[%emt 0:01:00]} 26. b3 {[%emt 0:00:00]} b6 {[%emt 0:01:13]} 27. Rd7 {[%emt 0:00:00]} Qxd7 {[%emt 0:04:59]} 28. h3 {[%emt 0:00:00]} Rd4 {[%emt 0:00:14]} 29. Rf1 {[%emt 0:00:00]} bxc5 {[%emt 0:00:26]} 30. Bd1 {[%emt 0:00:00]} Rd3 {[%emt 0:00:21]} 0-1

[Event "Liberia Championship 2023"]
[Site "Monrovia"]
[Date "2024.01.20"]
[Round "6.1"]
[White "Arnold Smith"]
[Black "Barcon, Harmon"]
[Result "1/2-1/2"]
[ECO "C65"]
[WhiteElo "1844"]
[BlackElo "1902"]
[Annotator "NA RC"]
[PlyCount "74"]
[EventDate "2024.01.16"]
[EventType "swiss"]
[EventCountry "LBR"]
[SourceTitle "playchess.com"]
[Source "ChessBase"]
[SourceQuality "1"]
[TimeControl "40/5400+30:1800+30"]

1. e4 {[%emt 0:00:04]} e5 {[%emt 0:00:06]} 2. Nf3 {[%emt 0:00:10]} Nc6 {[%emt 0:00:01]} 3. Bb5 {[%emt 0:00:28]} Nf6 {[%emt 0:00:38]} 4. O-O {[%emt 0:01:25]} Bc5 {[%emt 0:02:04]} 5. Nxe5 {[%emt 0:02:06]} Nxe5 {[%emt 0:04:03]} 6. d4 {[%emt 0:00:13]} Qe7 {[%emt 0:00:03]} 7. dxc5 {[%emt 0:05:04]} Qxc5 {[%emt 0:00:10]} 8. Nc3 {[%emt 0:00:12]} O-O {[%emt 0:02:46]} 9. Ba4 {[%emt 0:02:58]} c6 {[%emt 0:02:30]} 10. Bb3 {[%emt 0:00:16]} Re8 {[%emt 0:07:58]} 11. Be3 {[%emt 0:02:01]} Qa5 {[%emt 0:03:17]} 12. f3 {[%emt 0:01:03]} Ng6 {[%emt 0:00:51]} 13. Qd2 {[%emt 0:01:24]} Qc7 {[%emt 0:01:55]} 14. Rad1 {[%emt 0:00:15]} b5 {[%emt 0:00:25]} 15. Qd6 {[%emt 0:02:43]} Qxd6 {[%emt 0:07:00]} 16. Rxd6 {[%emt 0:00:30]} a5 17. a4 {[%emt 0:00:55]} b4 {[%emt 0:01:00]} 18. Ne2 {[%emt 0:01:26]} Ba6 {[%emt 0:00:06]} 19. Kf2 {[%emt 0:00:07]} Rxe4 {[%emt 0:08:02]} 20. Rxf6 {[%emt 0:10:27]} Rxe3 {[%emt 0:00:04]} 21. Bxf7+ {[%emt 0:00:13]} Kf8 {[%emt 0:01:26]} 22. Bxg6+ {[%emt 0:00:39]} gxf6 {[%emt 0:00:04]} 23. Kxe3 {[%emt 0:00:11]} hxg6 {[%emt 0:00:27]} 24. Re1 {[%emt 0:00:11]} Bxe2 {[%emt 0:03:13]} 25. Rxe2 {[%emt 0:00:07]} Re8+ {[%emt 0:03:43]} 26. Kd3 {[%emt 0:00:11]} Rxe2 {[%emt 0:00:12]} 27. Kxe2 {[%emt 0:00:05]} d5 {[%emt 0:00:22]} 28. Kd3 {[%emt 0:00:33]} Ke7 {[%emt 0:00:15]} 29. c3 {[%emt 0:00:16]} bxc3 {[%emt 0:01:42]} 30. bxc3 {[%emt 0:00:12]} c5 {[%emt 0:00:19]} 31. h4 {[%emt 0:00:13]} f5 {[%emt 0:01:16]} 32. g4 {[%emt 0:01:56]} fxg4 {[%emt 0:02:08]} 33. fxg4 {[%emt 0:00:14]} Kf6 {[%emt 0:00:20]} 34. Ke3 {[%emt 0:00:22]} Ke5 {[%emt 0:00:21]} 35. Kf3 {[%emt 0:00:25]} Ke6 {[%emt 0:01:46]} 36. Kf4 {[%emt 0:00:21]} Kf6 {[%emt 0:00:05]} 37. h5 {[%emt 0:03:26]} g5+ {[%emt 0:00:35]} 1/2-1/2

[Event "Liberia Championship 2023"]
[Site "Monrovia"]
[Date "2024.01.20"]
[Round "6.2"]
[White "David Leroy Debblay"]
[Black "Thomas, Saah"]
[Result "0-1"]
[ECO "B32"]
[WhiteElo "1791"]
[BlackElo "1889"]
[Annotator "NA RC"]
[PlyCount "90"]
[EventDate "2024.01.16"]
[EventType "swiss"]
[EventCountry "LBR"]
[SourceTitle "playchess.com"]
[Source "ChessBase"]
[SourceQuality "1"]
[TimeControl "40/5400+30:1800+30"]

1. e4 {[%emt 0:00:50]} c5 {[%emt 0:00:07]} 2. Nf3 {[%emt 0:00:06]} Nc6 {[%emt 0:00:08]} 3. d4 {[%emt 0:01:28]} cxd4 {[%emt 0:00:04]} 4. Nxd4 {[%emt 0:00:06]} e5 {[%emt 0:00:17]} 5. Nf3 {[%emt 0:01:03]} f5 {[%emt 0:00:35]} 6. Bc4 {[%emt 0:01:25]} fxe4 {[%emt 0:01:43]} 7. Qd5 {[%emt 0:02:59]} Qa5+ {[%emt 0:00:06]} 8. Qxa5 {[%emt 0:00:16]} Nxa5 {[%emt 0:00:05]} 9. Nxe5 {[%emt 0:00:16]} Nxc4 {[%emt 0:00:10]} 10. Nxc4 {[%emt 0:00:26]} d5 {[%emt 0:00:02]} 11. Ne3 {[%emt 0:00:45]} Nf6 {[%emt 0:00:25]} 12. c3 {[%emt 0:00:17]} Bc5 {[%emt 0:00:19]} 13. O-O {[%emt 0:00:13]} O-O {[%emt 0:00:03]} 14. a4 {[%emt 0:03:09]} b6 {[%emt 0:00:18]} 15. Na3 {[%emt 0:00:46]} a5 {[%emt 0:00:21]} 16. Nb5 {[%emt 0:00:09]} Rf7 {[%emt 0:02:28]} 17. Nc2 {[%emt 0:03:18]} Ng4 {[%emt 0:00:57]} 18. Be3 {[%emt 0:01:52]} Ba6 {[%emt 0:00:27]} 19. Ncd4 {[%emt 0:09:14]} Bxb5 {[%emt 0:04:10]} 20. axb5 {[%emt 0:00:11]} a4 {[%emt 0:02:00]} 21. b4 {[%emt 0:05:21]} Nxe3 {[%emt 0:00:00]} 22. fxe3 {[%emt 0:00:30]} Bxd4 {[%emt 0:00:00]} 23. cxd4 {[%emt 0:00:30]} Rxf1+ {[%emt 0:00:00]} 24. Kxf1 {[%emt 0:00:30]} a3 {[%emt 0:00:00]} 25. Kf2 {[%emt 0:00:30]} a2 {[%emt 0:00:24]} 26. Kg3 {[%emt 0:00:30]} Kf7 {[%emt 0:00:30]} 27. Kf4 {[%emt 0:00:30]} Ke6 {[%emt 0:00:30]} 28. h4 {[%emt 0:00:30]} h6 {[%emt 0:00:30]} 29. Kg3 Ra3 30. Kf4 {[%emt 0:02:06]} g6 {[%emt 0:00:42]} 31. g4 {[%emt 0:00:59]} Ra4 {[%emt 0:00:34]} 32. Kg3 {[%emt 0:00:26]} Ra3 {[%emt 0:00:07]} 33. Kf4 {[%emt 0:00:07]} Ra8 {[%emt 0:00:27]} 34. Kg3 {[%emt 0:00:20]} Ra4 {[%emt 0:00:05]} 35. Kf4 {[%emt 0:00:28]} Ra3 {[%emt 0:00:03]} 36. Kg3 {[%emt 0:01:24]} Rxe3+ {[%emt 0:00:03]} 37. Kf2 {[%emt 0:00:13]} Ra3 {[%emt 0:00:13]} 38. Kg2 {[%emt 0:01:15]} h5 {[%emt 0:00:07]} 39. gxh5 {[%emt 0:01:28]} gxh5 {[%emt 0:00:03]} 40. Kf2 {[%emt 0:00:00]} Kf5 {[%emt 0:00:00]} 41. Ke2 {[%emt 0:01:11]} Kg4 {[%emt 0:01:32]} 42. Kd2 {[%emt 0:00:31]} e3+ {[%emt 0:01:00]} 43. Kc2 {[%emt 0:00:33]} e2 {[%emt 0:00:51]} 44. Kb2 {[%emt 0:07:18]} Ra8 {[%emt 0:00:33]} 45. Rg1+ {[%emt 0:01:00]} Kf3 {[%emt 0:00:32]} 0-1

[Event "Liberia Championship 2023"]
[Site "Monrovia"]
[Date "2024.01.20"]
[Round "6.3"]
[White "Obediah Saah"]
[Black "Daniel Kolliemelen"]
[Result "1-0"]
[ECO "D30"]
[WhiteElo "1756"]
[BlackElo "1809"]
[Annotator "NA RC"]
[PlyCount "89"]
[EventDate "2024.01.16"]
[EventType "swiss"]
[EventCountry "LBR"]
[SourceTitle "playchess.com"]
[Source "ChessBase"]
[SourceQuality "1"]
[TimeControl "40/5400+30:1800+30"]

1. d4 {[%emt 0:00:30]} d5 {[%emt 0:03:51]} 2. Nf3 {[%emt 0:00:00]} e6 {[%emt 0:00:55]} 3. e3 {[%emt 0:00:37]} Nd7 {[%emt 0:01:48]} 4. c4 {[%emt 0:00:48]} c6 {[%emt 0:01:14]} 5. Bd3 {[%emt 0:00:58]} Bd6 {[%emt 0:00:53]} 6. O-O {[%emt 1:30:37]} f5 {[%emt 1:24:49]} 7. Nbd2 {[%emt 0:00:00]} Qe7 {[%emt 0:00:00]} 8. cxd5 {[%emt 0:00:00]} cxd5 {[%emt 0:00:00]} 9. Qa4 {[%emt 0:00:00]} Ngf6 {[%emt 0:00:00]} 10. Ne5 {[%emt 0:00:00]} O-O {[%emt 0:00:00]} 11. f4 {[%emt 0:00:00]} Nb6 {[%emt 0:02:30]} 12. Qd1 {[%emt 0:03:00]} Bb8 {[%emt 0:00:30]} 13. Rf3 {[%emt 0:00:00]} Nfd7 {[%emt 0:00:00]} 14. Rh3 {[%emt 0:00:00]} g6 {[%emt 0:00:00]} 15. Qf3 {[%emt 0:01:30]} Nxe5 {[%emt 0:00:00]} 16. fxe5 {[%emt 0:00:00]} Bd7 {[%emt 0:00:00]} 17. b3 {[%emt 0:00:00]} Rc8 {[%emt 0:00:00]} 18. a4 {[%emt 0:00:00]} Be8 {[%emt 0:00:00]} 19. Ba3 {[%emt 0:00:00]} Qf7 {[%emt 0:00:00]} 20. Rf1 {[%emt 0:02:30]} Bc7 {[%emt 0:04:00]} 21. g4 {[%emt 0:00:00]} Bd8 {[%emt 0:00:00]} 22. gxf5 {[%emt 0:00:00]} exf5 {[%emt 0:00:00]} 23. Rg3 {[%emt 0:00:00]} Bd7 {[%emt 0:00:00]} 24. Bxf5 {[%emt 0:00:00]} Be7 {[%emt 0:00:00]} 25. Bxe7 {[%emt 0:00:00]} Bxf5 {[%emt 0:00:00]} 26. Bd6 {[%emt 0:00:00]} Rc2 {[%emt 0:03:00]} 27. Rg2 {[%emt 0:03:30]} Kh8 {[%emt 0:00:00]} 28. Qd1 {[%emt 0:00:00]} Rac8 {[%emt 0:01:00]} 29. Bc5 {[%emt 0:01:00]} Rc3 {[%emt 0:00:00]} 30. e4 {[%emt 0:00:00]} dxe4 {[%emt 0:00:00]} 31. Nxe4 {[%emt 0:00:00]} Nd5 {[%emt 0:00:00]} 32. Nxc3 {[%emt 0:00:00]} Ne3 {[%emt 0:00:00]} 33. Qf3 {[%emt 0:00:00]} Nxf1 {[%emt 0:00:00]} 34. Qxf1 {[%emt 0:00:00]} b6 {[%emt 0:00:19]} 35. Nb5 {[%emt 0:00:00]} Qe6 {[%emt 0:02:04]} 36. Nd6 {[%emt 0:00:00]} bxc5 {[%emt 0:01:37]} 37. Nxc8 {[%emt 0:00:00]} Bh3 {[%emt 0:00:00]} 38. Qf8+ {[%emt 0:04:30]} Qg8 {[%emt 0:01:00]} 39. Qxg8+ {[%emt 0:00:00]} Kxg8 {[%emt 0:00:00]} 40. Rf2 {[%emt 0:00:00]} Bxc8 {[%emt 0:00:00]} 41. d5 {[%emt 0:16:37]} Bf5 {[%emt 0:29:12]} 42. Rxf5 {[%emt 0:01:20]} gxf5 {[%emt 0:00:04]} 43. e6 {[%emt 0:00:06]} Kg7 {[%emt 0:01:36]} 44. d6 {[%emt 0:00:12]} Kf6 {[%emt 0:01:34]} 45. d7 {[%emt 0:00:11]} 1-0

[Event "Liberia Championship 2023"]
[Site "Monrovia"]
[Date "2024.01.20"]
[Round "6.4"]
[White "Joel O. Ebiekuta"]
[Black "Anthony Waylea, Jr."]
[Result "1/2-1/2"]
[ECO "B00"]
[WhiteElo "1875"]
[BlackElo "1939"]
[Annotator "NA RC"]
[PlyCount "107"]
[EventDate "2024.01.16"]
[EventType "swiss"]
[EventCountry "LBR"]
[SourceTitle "playchess.com"]
[Source "ChessBase"]
[SourceQuality "1"]
[TimeControl "40/5400+30:1800+30"]

1. e4 {[%emt 0:02:27]} Nc6 {[%emt 0:00:08]} 2. d4 {[%emt 0:00:01]} e5 {[%emt 0:00:16]} 3. dxe5 {[%emt 0:00:47]} Nxe5 {[%emt 0:00:16]} 4. Nf3 {[%emt 0:00:01]} Qf6 {[%emt 0:00:11]} 5. Be2 {[%emt 0:00:49]} Bc5 {[%emt 0:00:18]} 6. Nc3 {[%emt 0:01:02]} Ne7 {[%emt 0:01:17]} 7. O-O {[%emt 0:00:09]} d6 {[%emt 0:00:24]} 8. Nd5 {[%emt 0:00:12]} Nxd5 {[%emt 0:00:23]} 9. Qxd5 {[%emt 0:00:22]} c6 {[%emt 0:01:31]} 10. Qb3 {[%emt 0:00:02]} O-O {[%emt 0:00:27]} 11. Be3 {[%emt 0:00:47]} Bxe3 {[%emt 0:00:58]} 12. fxe3 {[%emt 0:00:21]} Qe7 {[%emt 0:01:32]} 13. Rad1 {[%emt 0:00:18]} Be6 {[%emt 0:00:44]} 14. Qc3 {[%emt 0:00:10]} Nxf3+ {[%emt 0:01:22]} 15. Bxf3 {[%emt 0:00:06]} Rad8 {[%emt 0:00:43]} 16. Rd3 {[%emt 0:00:11]} f5 {[%emt 0:01:51]} 17. Rfd1 {[%emt 0:02:13]} fxe4 {[%emt 0:01:43]} 18. Bxe4 {[%emt 0:00:01]} d5 {[%emt 0:00:31]} 19. Bf3 {[%emt 0:00:06]} Bf5 {[%emt 0:01:01]} 20. Rd4 {[%emt 0:00:57]} Rde8 {[%emt 0:02:41]} 21. Re1 {[%emt 0:02:01]} Qf6 {[%emt 0:00:10]} 22. Qd2 {[%emt 0:00:08]} Qg6 {[%emt 0:03:12]} 23. c4 {[%emt 0:00:47]} dxc4 {[%emt 0:04:22]} 24. Rxc4 {[%emt 0:01:26]} Be6 {[%emt 0:01:15]} 25. Be4 {[%emt 0:01:53]} Qf7 {[%emt 0:00:26]} 26. Rd4 {[%emt 0:01:17]} Bxa2 {[%emt 0:05:22]} 27. Rd7 {[%emt 0:00:30]} Re7 28. Rxe7 Qxe7 {[%emt 0:01:00]} 29. Qd3 {[%emt 0:04:02]} Qf7 {[%emt 0:00:57]} 30. Bxh7+ {[%emt 0:01:12]} Kh8 {[%emt 0:00:12]} 31. Kh1 {[%emt 0:02:46]} Bc4 {[%emt 0:06:48]} 32. Qb1 {[%emt 0:00:10]} Qf1+ {[%emt 0:00:15]} 33. Rxf1 {[%emt 0:00:34]} Rxf1+ {[%emt 0:00:06]} 34. Qxf1 {[%emt 0:00:28]} Bxf1 {[%emt 0:00:04]} 35. Bg6 {[%emt 0:00:06]} Bc4 {[%emt 0:01:06]} 36. Kg1 {[%emt 0:00:06]} a5 {[%emt 0:01:01]} 37. Kf2 {[%emt 0:00:00]} a4 {[%emt 0:05:35]} 38. Ke1 {[%emt 0:00:06]} b5 {[%emt 0:00:25]} 39. Kd2 {[%emt 0:00:00]} b4 {[%emt 0:00:29]} 40. Kc2 {[%emt 0:00:00]} a3 {[%emt 0:00:00]} 41. bxa3 {[%emt 0:01:41]} bxa3 {[%emt 0:00:35]} 42. g4 {[%emt 0:00:45]} Kg8 {[%emt 0:00:24]} 43. h4 {[%emt 0:00:22]} Kf8 {[%emt 0:00:23]} 44. h5 {[%emt 0:00:06]} Ke7 {[%emt 0:03:49]} 45. g5 {[%emt 0:00:02]} Be6 {[%emt 0:00:49]} 46. e4 {[%emt 0:00:03]} c5 {[%emt 0:03:23]} 47. Bf5 {[%emt 0:01:10]} a2 {[%emt 0:00:06]} 48. Kb2 {[%emt 0:00:04]} Bb3 {[%emt 0:00:43]} 49. e5 {[%emt 0:00:11]} c4 {[%emt 0:00:10]} 50. h6 {[%emt 0:00:05]} gxh6 {[%emt 0:01:08]} 51. gxh6 {[%emt 0:00:01]} c3+ {[%emt 0:00:51]} 52. Ka1 {[%emt 0:01:57]} Kf8 {[%emt 0:00:18]} 53. Bg6 {[%emt 0:00:58]} Kg8 {[%emt 0:00:42]} 54. Bd3 {[%emt 0:00:21]} 1/2-1/2

[Event "Liberia Championship 2023"]
[Site "Monrovia"]
[Date "2024.01.20"]
[Round "6.5"]
[White "Bobby Ballah"]
[Black "James, Tondo"]
[Result "0-1"]
[ECO "B00"]
[WhiteElo "1913"]
[BlackElo "1837"]
[Annotator "NA RC"]
[PlyCount "88"]
[EventDate "2024.01.16"]
[EventType "swiss"]
[EventCountry "LBR"]
[SourceTitle "playchess.com"]
[Source "ChessBase"]
[SourceQuality "1"]
[TimeControl "40/5400+30:1800+30"]

1. e4 {[%emt 0:00:31]} b6 {[%emt 0:00:12]} 2. d4 {[%emt 0:00:07]} Bb7 {[%emt 0:00:01]} 3. Nc3 {[%emt 0:00:39]} Nf6 {[%emt 0:00:08]} 4. Bd3 {[%emt 0:01:23]} e6 {[%emt 0:00:17]} 5. Nf3 {[%emt 0:00:23]} c5 {[%emt 0:00:17]} 6. d5 {[%emt 0:11:36]} exd5 {[%emt 0:04:02]} 7. exd5 {[%emt 0:00:18]} Nxd5 {[%emt 0:02:21]} 8. Nxd5 {[%emt 0:00:28]} Bxd5 {[%emt 1:27:12]} 9. Bxh7 {[%emt 0:06:25]} Qe7+ {[%emt 0:00:00]} 10. Be3 {[%emt 1:13:40]} Bc4 11. Bd3 {[%emt 0:00:00]} Bxd3 12. Qxd3 {[%emt 0:00:00]} Nc6 {[%emt 0:00:00]} 13. a3 {[%emt 0:00:00]} Ne5 {[%emt 0:00:00]} 14. Nxe5 {[%emt 0:00:00]} Qxe5 {[%emt 0:00:00]} 15. O-O-O {[%emt 0:00:00]} O-O-O {[%emt 0:00:00]} 16. Qa6+ {[%emt 0:00:00]} Kb8 {[%emt 0:00:00]} 17. g3 {[%emt 0:00:00]} g6 {[%emt 0:00:00]} 18. Bf4 {[%emt 0:00:00]} Bh6 {[%emt 0:00:00]} 19. Bxh6 {[%emt 0:00:00]} Rxh6 {[%emt 0:00:00]} 20. a4 {[%emt 0:00:00]} g5 {[%emt 0:00:00]} 21. a5 {[%emt 0:00:00]} d5 {[%emt 0:00:00]} 22. Rhe1 {[%emt 0:00:00]} Qc7 {[%emt 0:00:00]} 23. Re2 {[%emt 0:00:00]} Re6 {[%emt 0:00:00]} 24. Rxe6 {[%emt 0:00:00]} fxe6 {[%emt 0:00:00]} 25. axb6 {[%emt 0:00:00]} Qxb6 {[%emt 0:00:00]} 26. Qxb6+ {[%emt 0:00:00]} axb6 {[%emt 0:00:00]} 27. Re1 {[%emt 0:00:00]} Re8 {[%emt 0:00:00]} 28. Re5 {[%emt 0:00:00]} g4 {[%emt 0:00:00]} 29. Rg5 {[%emt 0:00:00]} Rh8 {[%emt 0:00:00]} 30. Rxg4 {[%emt 0:00:00]} Rxh2 {[%emt 0:00:00]} 31. Rg6 {[%emt 0:00:00]} Rxf2 {[%emt 0:00:00]} 32. Rxe6 {[%emt 0:00:00]} Kb7 {[%emt 0:00:00]} 33. g4 {[%emt 0:00:00]} Rg2 {[%emt 0:00:00]} 34. Rg6 {[%emt 0:00:00]} Ka6 {[%emt 0:00:00]} 35. g5 {[%emt 0:00:00]} Kb5 {[%emt 0:00:00]} 36. Rg8 {[%emt 0:00:00]} d4 {[%emt 0:00:00]} 37. g6 {[%emt 0:00:00]} Kc4 {[%emt 0:00:00]} 38. g7 {[%emt 0:00:00]} b5 {[%emt 0:01:20]} 39. Kb1 {[%emt 0:01:49]} b4 {[%emt 0:02:43]} 40. b3+ {[%emt 0:00:00]} Kc3 {[%emt 0:00:00]} 41. Rc8 {[%emt 0:03:34]} Rg1+ {[%emt 0:02:53]} 42. Ka2 {[%emt 0:00:38]} Rxg7 {[%emt 0:04:24]} 43. Rxc5+ {[%emt 0:00:37]} Kd2 {[%emt 0:00:37]} 44. Rc4 {[%emt 0:01:28]} Kc1 {[%emt 0:00:38]} 0-1